fUST/lending_fUST_20260527
["ID","MTS","AMOUNT","RATE_DAILY","PERIOD"]
[423077248,1779825032000,-113.2653593,7.007e-05,2]
[423077249,1779825032000,-172.71942406,7.095e-05,2]
[423077253,1779825032000,-210.43239303,7.416e-05,2]
[423077252,1779825032000,-293.6230209,7.314e-05,2]
[423077254,1779825032000,-293.6230209,7.588e-05,2]
[423077265,1779825032000,-161.76405772,8.093e-05,2]
[423077259,1779825032000,-443.0,7.764e-05,2]
[423077257,1779825032000,-648.0,7.764e-05,2]
[423077261,1779825032000,-185.0,7.764e-05,2]
[423077256,1779825032000,-1414.0,7.764e-05,2]
[423077255,1779825032000,-600.0,7.667e-05,2]
[423077266,1779825032000,-160.0,8.143e-05,2]
[423077258,1779825032000,-2204.0,7.764e-05,2]
[423077262,1779825032000,-150.0,7.764e-05,2]
[423077281,1779825032000,-500.0,8.219e-05,2]
[423077307,1779825032000,-282.11,8.219e-05,2]
[423077286,1779825032000,-500.0,8.219e-05,2]
[423077309,1779825032000,-500.66916647,8.219e-05,2]
[423077322,1779825032000,-500.0,8.219e-05,2]
[423077313,1779825032000,-500.0,8.219e-05,2]
[423077314,1779825032000,-208.61564439,8.219e-05,2]
[423077318,1779825032000,-500.0,8.219e-05,2]
[423077316,1779825032000,-500.0,8.219e-05,2]
[423077315,1779825032000,-500.0,8.219e-05,2]
[423077319,1779825032000,-345.80442385,8.219e-05,2]
[423077317,1779825032000,-500.0,8.219e-05,2]
[423077323,1779825032000,-417.24811089,8.219e-05,2]
[423077324,1779825032000,-500.0,8.219e-05,2]
[423077325,1779825032000,-500.0,8.219e-05,2]
[423077330,1779825032000,-632.93314454,8.219e-05,2]
[423077327,1779825032000,-500.0,8.219e-05,2]
[423077331,1779825032000,-500.0,8.219e-05,2]
[423077332,1779825032000,-500.0,8.219e-05,2]
[423077329,1779825032000,-500.0,8.219e-05,2]
[423077326,1779825032000,-500.0,8.219e-05,2]
[423077283,1779825032000,-288.41,8.219e-05,2]
[423077312,1779825032000,-500.0,8.219e-05,2]
[423077311,1779825032000,-500.71464055,8.219e-05,2]
[423077328,1779825032000,-500.0,8.219e-05,2]
[423077320,1779825032000,-477.51431663,8.219e-05,2]
[423077321,1779825032000,-500.0,8.219e-05,2]
[423077293,1779825032000,-500.0,8.219e-05,2]
[423077290,1779825032000,-500.0,8.219e-05,2]
[423077289,1779825032000,-502.00161589,8.219e-05,2]
[423077295,1779825032000,-500.0,8.219e-05,2]
[423077297,1779825032000,-500.0,8.219e-05,2]
[423077291,1779825032000,-522.7,8.219e-05,2]
[423077333,1779825032000,-500.0,8.219e-05,2]
[423077302,1779825032000,-500.67845505,8.219e-05,2]
[423077296,1779825032000,-500.0,8.219e-05,2]
[423077308,1779825032000,-500.0,8.219e-05,2]
[423077310,1779825032000,-500.0,8.219e-05,2]
[423077301,1779825032000,-500.0,8.219e-05,2]
[423077300,1779825032000,-500.0,8.219e-05,2]
[423077306,1779825032000,-500.0,8.219e-05,2]
[423077304,1779825032000,-500.29625024,8.219e-05,2]
[423077305,1779825032000,-500.0,8.219e-05,2]
[423077299,1779825032000,-500.0,8.219e-05,2]
[423077303,1779825032000,-500.0,8.219e-05,2]
[423077298,1779825032000,-500.0,8.219e-05,2]
[423077337,1779825033000,-500.0,8.219e-05,2]
[423077336,1779825033000,-500.0,8.219e-05,2]
[423077335,1779825033000,-500.0,8.219e-05,2]
[423077334,1779825033000,-500.0,8.219e-05,2]
[423077338,1779825033000,-500.0,8.219e-05,2]
[423077348,1779825033000,-392.05618562,8.219e-05,2]
[423077349,1779825033000,-500.0,8.219e-05,2]
[423077350,1779825033000,-295.26852456,8.219e-05,2]
[423077340,1779825033000,-500.0,8.219e-05,2]
[423077344,1779825033000,-500.0,8.219e-05,2]
[423077341,1779825033000,-500.0,8.219e-05,2]
[423077342,1779825033000,-500.0,8.219e-05,2]
[423077343,1779825033000,-500.0,8.219e-05,2]
[423077347,1779825033000,-500.0,8.219e-05,2]
[423077345,1779825033000,-500.0,8.219e-05,2]
[423077346,1779825033000,-500.0,8.219e-05,2]
[423077339,1779825033000,-500.0,8.219e-05,2]
[423077391,1779825038000,-500.0,8.219e-05,2]
[423077381,1779825038000,-500.0,8.219e-05,2]
[423077376,1779825038000,-500.0,8.219e-05,2]
[423077377,1779825038000,-500.0,8.219e-05,2]
[423077378,1779825038000,-511.82,8.219e-05,2]
[423077379,1779825038000,-501.8419433,8.219e-05,2]
[423077375,1779825038000,-500.0,8.219e-05,2]
[423077374,1779825038000,-500.0,8.219e-05,2]
[423077372,1779825038000,-500.0,8.219e-05,2]
[423077371,1779825038000,-206.11636995,8.219e-05,2]
[423077382,1779825038000,-500.0,8.219e-05,2]
[423077373,1779825038000,-500.0,8.219e-05,2]
[423077386,1779825038000,-506.19,8.219e-05,2]
[423077387,1779825038000,-500.0,8.219e-05,2]
[423077396,1779825038000,-500.0,8.219e-05,2]
[423077397,1779825038000,-500.0,8.219e-05,2]
[423077395,1779825038000,-500.0,8.219e-05,2]
[423077398,1779825038000,-500.0,8.219e-05,2]
[423077383,1779825038000,-500.0,8.219e-05,2]
[423077393,1779825038000,-500.0,8.219e-05,2]
[423077392,1779825038000,-500.0,8.219e-05,2]
[423077394,1779825038000,-500.0,8.219e-05,2]
[423077390,1779825038000,-500.0,8.219e-05,2]
[423077385,1779825038000,-500.0,8.219e-05,2]
[423077388,1779825038000,-500.3491506,8.219e-05,2]
[423077384,1779825038000,-500.0,8.219e-05,2]
[423077380,1779825038000,-500.0,8.219e-05,2]
[423077389,1779825038000,-500.0,8.219e-05,2]
[423077438,1779825039000,-500.0,8.219e-05,2]
[423077440,1779825039000,-500.0,8.219e-05,2]
[423077439,1779825039000,-500.0,8.219e-05,2]
[423077437,1779825039000,-500.0,8.219e-05,2]
[423077436,1779825039000,-500.0,8.219e-05,2]
[423077435,1779825039000,-500.0,8.219e-05,2]
[423077462,1779825039000,-500.0,8.219e-05,2]
[423077442,1779825039000,-500.0,8.219e-05,2]
[423077433,1779825039000,-500.0,8.219e-05,2]
[423077441,1779825039000,-500.0,8.219e-05,2]
[423077432,1779825039000,-500.0,8.219e-05,2]
[423077443,1779825039000,-500.0,8.219e-05,2]
[423077434,1779825039000,-500.0,8.219e-05,2]
[423077445,1779825039000,-500.0,8.219e-05,2]
[423077453,1779825039000,-500.0,8.219e-05,2]
[423077446,1779825039000,-500.0,8.219e-05,2]
[423077447,1779825039000,-571.03919234,8.219e-05,2]
[423077444,1779825039000,-500.0,8.219e-05,2]
[423077450,1779825039000,-500.0,8.219e-05,2]
[423077448,1779825039000,-500.0,8.219e-05,2]
[423077431,1779825039000,-500.0,8.219e-05,2]
[423077451,1779825039000,-500.0,8.219e-05,2]
[423077452,1779825039000,-500.0,8.219e-05,2]
[423077454,1779825039000,-500.0,8.219e-05,2]
[423077456,1779825039000,-500.0,8.219e-05,2]
[423077466,1779825039000,-500.0,8.219e-05,2]
[423077459,1779825039000,-500.0,8.219e-05,2]
[423077455,1779825039000,-500.0,8.219e-05,2]
[423077463,1779825039000,-500.0,8.219e-05,2]
[423077449,1779825039000,-500.0,8.219e-05,2]
[423077430,1779825039000,-500.0,8.219e-05,2]
[423077421,1779825039000,-500.0,8.219e-05,2]
[423077425,1779825039000,-500.0,8.219e-05,2]
[423077404,1779825039000,-500.0,8.219e-05,2]
[423077401,1779825039000,-500.0,8.219e-05,2]
[423077399,1779825039000,-500.0,8.219e-05,2]
[423077402,1779825039000,-500.0,8.219e-05,2]
[423077400,1779825039000,-500.0,8.219e-05,2]
[423077403,1779825039000,-427.0,8.219e-05,2]
[423077406,1779825039000,-500.0,8.219e-05,2]
[423077416,1779825039000,-500.0,8.219e-05,2]
[423077405,1779825039000,-500.0,8.219e-05,2]
[423077417,1779825039000,-500.0,8.219e-05,2]
[423077407,1779825039000,-500.0,8.219e-05,2]
[423077408,1779825039000,-504.84246796,8.219e-05,2]
[423077415,1779825039000,-500.0,8.219e-05,2]
[423077426,1779825039000,-500.0,8.219e-05,2]
[423077410,1779825039000,-500.0,8.219e-05,2]
[423077411,1779825039000,-500.0,8.219e-05,2]
[423077409,1779825039000,-500.0,8.219e-05,2]
[423077412,1779825039000,-500.0,8.219e-05,2]
[423077413,1779825039000,-500.0,8.219e-05,2]
[423077419,1779825039000,-500.0,8.219e-05,2]
[423077420,1779825039000,-500.0,8.219e-05,2]
[423077429,1779825039000,-500.0,8.219e-05,2]
[423077418,1779825039000,-295.44,8.219e-05,2]
[423077422,1779825039000,-500.0,8.219e-05,2]
[423077424,1779825039000,-226.41364325,8.219e-05,2]
[423077427,1779825039000,-561.59606079,8.219e-05,2]
[423077423,1779825039000,-500.0,8.219e-05,2]
[423077428,1779825039000,-500.0,8.219e-05,2]
[423077414,1779825039000,-500.0,8.219e-05,2]
[423077460,1779825039000,-500.0,8.219e-05,2]
[423077479,1779825039000,-304.96,8.219e-05,2]
[423077467,1779825039000,-500.0,8.219e-05,2]
[423077497,1779825039000,-225.30640717,8.219e-05,2]
[423077507,1779825039000,-500.0,8.219e-05,2]
[423077501,1779825039000,-500.0,8.219e-05,2]
[423077508,1779825039000,-720.0,8.434e-05,2]
[423077498,1779825039000,-260.80196088,8.219e-05,2]
[423077499,1779825039000,-239.67,8.219e-05,2]
[423077506,1779825039000,-500.0,8.219e-05,2]
[423077500,1779825039000,-2468.46,8.219e-05,2]
[423077505,1779825039000,-500.0,8.219e-05,2]
[423077502,1779825039000,-500.0,8.219e-05,2]
[423077503,1779825039000,-500.43712466,8.219e-05,2]
[423077504,1779825039000,-556.77,8.219e-05,2]
[423077521,1779825039000,-501.97165941,8.493e-05,2]
[423077511,1779825039000,-500.0,8.493e-05,2]
[423077509,1779825039000,-192.38,8.493e-05,2]
[423077520,1779825039000,-184.38,8.493e-05,2]
[423077516,1779825039000,-500.0,8.493e-05,2]
[423077512,1779825039000,-500.0,8.493e-05,2]
[423077519,1779825039000,-500.0,8.493e-05,2]
[423077514,1779825039000,-547.61482499,8.493e-05,2]
[423077515,1779825039000,-634.76,8.493e-05,2]
[423077513,1779825039000,-388.05,8.493e-05,2]
[423077517,1779825039000,-500.0,8.493e-05,2]
[423077518,1779825039000,-500.28130502,8.493e-05,2]
[423077522,1779825039000,-500.0,8.493e-05,2]
[423077523,1779825039000,-500.0,8.493e-05,2]
[423077525,1779825039000,-158.66594916,8.493e-05,2]
[423077524,1779825039000,-493.42,8.493e-05,2]
[423077457,1779825039000,-500.0,8.219e-05,2]
[423077496,1779825039000,-500.0,8.219e-05,2]
[423077487,1779825039000,-164.09092,8.219e-05,2]
[423077510,1779825039000,-848.65,8.493e-05,2]
[423077488,1779825039000,-164.09092,8.219e-05,2]
[423077492,1779825039000,-223.63,8.219e-05,2]
[423077461,1779825039000,-500.0,8.219e-05,2]
[423077464,1779825039000,-500.0,8.219e-05,2]
[423077465,1779825039000,-500.0,8.219e-05,2]
[423077468,1779825039000,-500.0,8.219e-05,2]
[423077470,1779825039000,-381.14,8.219e-05,2]
[423077469,1779825039000,-500.0,8.219e-05,2]
[423077472,1779825039000,-231.53,8.219e-05,2]
[423077471,1779825039000,-500.0,8.219e-05,2]
[423077477,1779825039000,-175.09,8.219e-05,2]
[423077473,1779825039000,-600.27529481,8.219e-05,2]
[423077475,1779825039000,-500.0,8.219e-05,2]
[423077474,1779825039000,-500.0,8.219e-05,2]
[423077481,1779825039000,-280.12,8.219e-05,2]
[423077458,1779825039000,-500.0,8.219e-05,2]
[423077478,1779825039000,-500.0,8.219e-05,2]
[423077480,1779825039000,-500.0,8.219e-05,2]
[423077491,1779825039000,-164.09092,8.219e-05,2]
[423077489,1779825039000,-164.09092,8.219e-05,2]
[423077485,1779825039000,-164.09092,8.219e-05,2]
[423077486,1779825039000,-202.91,8.219e-05,2]
[423077493,1779825039000,-164.09092,8.219e-05,2]
[423077494,1779825039000,-164.09092,8.219e-05,2]
[423077490,1779825039000,-164.09092,8.219e-05,2]
[423077482,1779825039000,-500.0,8.219e-05,2]
[423077495,1779825039000,-164.09092,8.219e-05,2]
[423077483,1779825039000,-164.09092,8.219e-05,2]
[423077476,1779825039000,-500.0,8.219e-05,2]
[423077484,1779825039000,-164.09092,8.219e-05,2]
[423077575,1779825040000,-500.0,8.493e-05,2]
[423077574,1779825040000,-500.0,8.493e-05,2]
[423077571,1779825040000,-500.0,8.493e-05,2]
[423077556,1779825040000,-500.0,8.493e-05,2]
[423077569,1779825040000,-500.0,8.493e-05,2]
[423077577,1779825040000,-500.0,8.493e-05,2]
[423077572,1779825040000,-500.0,8.493e-05,2]
[423077568,1779825040000,-500.0,8.493e-05,2]
[423077566,1779825040000,-500.0,8.493e-05,2]
[423077565,1779825040000,-609.96,8.493e-05,2]
[423077576,1779825040000,-500.0,8.493e-05,2]
[423077564,1779825040000,-500.0,8.493e-05,2]
[423077567,1779825040000,-500.0,8.493e-05,2]
[423077573,1779825040000,-500.0,8.493e-05,2]
[423077586,1779825040000,-403.13321532,8.493e-05,2]
[423077578,1779825040000,-500.0,8.493e-05,2]
[423077581,1779825040000,-500.0,8.493e-05,2]
[423077579,1779825040000,-500.0,8.493e-05,2]
[423077590,1779825040000,-500.0,8.493e-05,2]
[423077583,1779825040000,-500.0,8.493e-05,2]
[423077584,1779825040000,-516.94,8.493e-05,2]
[423077588,1779825040000,-171.64,8.493e-05,2]
[423077589,1779825040000,-500.0,8.493e-05,2]
[423077582,1779825040000,-500.0,8.493e-05,2]
[423077587,1779825040000,-500.0,8.493e-05,2]
[423077580,1779825040000,-500.0,8.493e-05,2]
[423077585,1779825040000,-185.28,8.493e-05,2]
[423077592,1779825040000,-500.0,8.493e-05,2]
[423077554,1779825040000,-344.42134783,8.493e-05,2]
[423077570,1779825040000,-500.0,8.493e-05,2]
[423077558,1779825040000,-500.0,8.493e-05,2]
[423077530,1779825040000,-442.24155616,8.493e-05,2]
[423077561,1779825040000,-589.08701475,8.493e-05,2]
[423077603,1779825040000,-500.0,8.493e-05,2]
[423077529,1779825040000,-500.0,8.493e-05,2]
[423077532,1779825040000,-500.0,8.493e-05,2]
[423077528,1779825040000,-500.0,8.493e-05,2]
[423077531,1779825040000,-517.66,8.493e-05,2]
[423077526,1779825040000,-500.0,8.493e-05,2]
[423077527,1779825040000,-500.0,8.493e-05,2]
[423077533,1779825040000,-500.0,8.493e-05,2]
[423077535,1779825040000,-500.0,8.493e-05,2]
[423077546,1779825040000,-559.13576128,8.493e-05,2]
[423077545,1779825040000,-500.0,8.493e-05,2]
[423077547,1779825040000,-500.0,8.493e-05,2]
[423077537,1779825040000,-500.0,8.493e-05,2]
[423077534,1779825040000,-500.0,8.493e-05,2]
[423077544,1779825040000,-500.0,8.493e-05,2]
[423077536,1779825040000,-617.7,8.493e-05,2]
[423077538,1779825040000,-500.0,8.493e-05,2]
[423077541,1779825040000,-500.0,8.493e-05,2]
[423077539,1779825040000,-500.0,8.493e-05,2]
[423077540,1779825040000,-500.42464554,8.493e-05,2]
[423077542,1779825040000,-500.0,8.493e-05,2]
[423077543,1779825040000,-584.84,8.493e-05,2]
[423077550,1779825040000,-531.42,8.493e-05,2]
[423077548,1779825040000,-500.0,8.493e-05,2]
[423077549,1779825040000,-500.0,8.493e-05,2]
[423077559,1779825040000,-500.0,8.493e-05,2]
[423077560,1779825040000,-500.0,8.493e-05,2]
[423077552,1779825040000,-500.0,8.493e-05,2]
[423077562,1779825040000,-500.0,8.493e-05,2]
[423077563,1779825040000,-500.0,8.493e-05,2]
[423077599,1779825040000,-252.34563867,8.493e-05,2]
[423077617,1779825040000,-500.0,8.493e-05,2]
[423077594,1779825040000,-500.0,8.493e-05,2]
[423077651,1779825040000,-500.0,8.767e-05,2]
[423077638,1779825040000,-260.80196085,8.664e-05,2]
[423077640,1779825040000,-500.0,8.767e-05,2]
[423077639,1779825040000,-500.0,8.767e-05,2]
[423077641,1779825040000,-500.0,8.767e-05,2]
[423077650,1779825040000,-246.52183922,8.767e-05,2]
[423077644,1779825040000,-171.3588001,8.767e-05,2]
[423077646,1779825040000,-500.0,8.767e-05,2]
[423077642,1779825040000,-500.0,8.767e-05,2]
[423077648,1779825040000,-500.0,8.767e-05,2]
[423077647,1779825040000,-500.0,8.767e-05,2]
[423077645,1779825040000,-500.0,8.767e-05,2]
[423077643,1779825040000,-500.0,8.767e-05,2]
[423077653,1779825040000,-501.36698598,8.767e-05,2]
[423077655,1779825040000,-283.65627377,8.767e-05,2]
[423077656,1779825040000,-500.0,8.767e-05,2]
[423077665,1779825040000,-500.0,8.767e-05,2]
[423077661,1779825040000,-500.0,8.767e-05,2]
[423077660,1779825040000,-500.0,8.767e-05,2]
[423077664,1779825040000,-500.0,8.767e-05,2]
[423077667,1779825040000,-566.42584865,8.767e-05,2]
[423077663,1779825040000,-500.0,8.767e-05,2]
[423077659,1779825040000,-500.0,8.767e-05,2]
[423077666,1779825040000,-500.0,8.767e-05,2]
[423077658,1779825040000,-161.8845672,8.767e-05,2]
[423077662,1779825040000,-500.0,8.767e-05,2]
[423077669,1779825040000,-500.0,8.767e-05,2]
[423077668,1779825040000,-848.65,8.767e-05,2]
[423077601,1779825040000,-500.0,8.493e-05,2]
[423077652,1779825040000,-500.0,8.767e-05,2]
[423077649,1779825040000,-500.0,8.767e-05,2]
[423077671,1779825040000,-500.0,8.767e-05,2]
[423077631,1779825040000,-151.0,8.493e-05,2]
[423077595,1779825040000,-500.0,8.493e-05,2]
[423077597,1779825040000,-500.0,8.493e-05,2]
[423077591,1779825040000,-500.0,8.493e-05,2]
[423077600,1779825040000,-500.0,8.493e-05,2]
[423077598,1779825040000,-500.0,8.493e-05,2]
[423077607,1779825040000,-500.0,8.493e-05,2]
[423077610,1779825040000,-361.15243636,8.493e-05,2]
[423077611,1779825040000,-500.0,8.493e-05,2]
[423077633,1779825040000,-500.0,8.493e-05,2]
[423077605,1779825040000,-500.0,8.493e-05,2]
[423077619,1779825040000,-500.0,8.493e-05,2]
[423077618,1779825040000,-270.94,8.493e-05,2]
[423077613,1779825040000,-306.39,8.493e-05,2]
[423077620,1779825040000,-500.0,8.493e-05,2]
[423077670,1779825040000,-500.0,8.767e-05,2]
[423077615,1779825040000,-500.0,8.493e-05,2]
[423077623,1779825040000,-500.0,8.493e-05,2]
[423077625,1779825040000,-500.0,8.493e-05,2]
[423077621,1779825040000,-212.28,8.493e-05,2]
[423077629,1779825040000,-500.0,8.493e-05,2]
[423077634,1779825040000,-2468.46,8.493e-05,2]
[423077624,1779825040000,-487.82,8.493e-05,2]
[423077626,1779825040000,-234.09,8.493e-05,2]
[423077630,1779825040000,-500.0,8.493e-05,2]
[423077628,1779825040000,-351.92990995,8.493e-05,2]
[423077636,1779825040000,-556.77,8.493e-05,2]
[423077627,1779825040000,-500.0,8.493e-05,2]
[423077637,1779825040000,-500.0,8.493e-05,2]
[423077632,1779825040000,-500.0,8.493e-05,2]
[423077622,1779825040000,-372.06,8.493e-05,2]
[423077635,1779825040000,-500.0,8.493e-05,2]
[423077711,1779825041000,-500.0,8.767e-05,2]
[423077722,1779825041000,-253.62,9.041e-05,2]
[423077717,1779825041000,-556.77,8.767e-05,2]
[423077716,1779825041000,-500.0,8.767e-05,2]
[423077714,1779825041000,-500.0,8.767e-05,2]
[423077701,1779825041000,-602.6,8.767e-05,2]
[423077712,1779825041000,-500.0,8.767e-05,2]
[423077709,1779825041000,-500.0,8.767e-05,2]
[423077700,1779825041000,-500.0,8.767e-05,2]
[423077703,1779825041000,-500.0,8.767e-05,2]
[423077702,1779825041000,-500.0,8.767e-05,2]
[423077713,1779825041000,-502.64,8.767e-05,2]
[423077710,1779825041000,-500.0,8.767e-05,2]
[423077725,1779825041000,-500.0,9.041e-05,2]
[423077721,1779825041000,-500.0,9.041e-05,2]
[423077720,1779825041000,-848.65,9.041e-05,2]
[423077715,1779825041000,-2468.46,8.767e-05,2]
[423077719,1779825041000,-478.76985018,9.007e-05,2]
[423077724,1779825041000,-291.02,9.041e-05,2]
[423077730,1779825041000,-381.46,9.041e-05,2]
[423077732,1779825041000,-500.0,9.041e-05,2]
[423077731,1779825041000,-500.0,9.041e-05,2]
[423077733,1779825041000,-247.28,9.041e-05,2]
[423077734,1779825041000,-500.0,9.041e-05,2]
[423077735,1779825041000,-323.74,9.041e-05,2]
[423077736,1779825041000,-500.0,9.041e-05,2]
[423077723,1779825041000,-500.0,9.041e-05,2]
[423077704,1779825041000,-500.0,8.767e-05,2]
[423077718,1779825041000,-500.0,8.767e-05,2]
[423077705,1779825041000,-500.0,8.767e-05,2]
[423077685,1779825041000,-500.0,8.767e-05,2]
[423077706,1779825041000,-500.0,8.767e-05,2]
[423077726,1779825041000,-500.0,9.041e-05,2]
[423077679,1779825041000,-500.0,8.767e-05,2]
[423077674,1779825041000,-187.82,8.767e-05,2]
[423077672,1779825041000,-178.16,8.767e-05,2]
[423077681,1779825041000,-500.70175716,8.767e-05,2]
[423077675,1779825041000,-281.52,8.767e-05,2]
[423077680,1779825041000,-500.0,8.767e-05,2]
[423077676,1779825041000,-500.0,8.767e-05,2]
[423077673,1779825041000,-264.87,8.767e-05,2]
[423077677,1779825041000,-500.0,8.767e-05,2]
[423077678,1779825041000,-500.0,8.767e-05,2]
[423077682,1779825041000,-500.0,8.767e-05,2]
[423077686,1779825041000,-500.0,8.767e-05,2]
[423077687,1779825041000,-617.81725202,8.767e-05,2]
[423077683,1779825041000,-500.0,8.767e-05,2]
[423077689,1779825041000,-500.0,8.767e-05,2]
[423077684,1779825041000,-500.0,8.767e-05,2]
[423077693,1779825041000,-500.0,8.767e-05,2]
[423077692,1779825041000,-500.0,8.767e-05,2]
[423077694,1779825041000,-500.0,8.767e-05,2]
[423077688,1779825041000,-317.88,8.767e-05,2]
[423077691,1779825041000,-500.0,8.767e-05,2]
[423077690,1779825041000,-500.0,8.767e-05,2]
[423077696,1779825041000,-500.0,8.767e-05,2]
[423077708,1779825041000,-500.0,8.767e-05,2]
[423077695,1779825041000,-489.82,8.767e-05,2]
[423077697,1779825041000,-500.0,8.767e-05,2]
[423077707,1779825041000,-500.0,8.767e-05,2]
[423077699,1779825041000,-467.9,8.767e-05,2]
[423077698,1779825041000,-522.04,8.767e-05,2]
[423077727,1779825041000,-500.0,9.041e-05,2]
[423077737,1779825041000,-298.49,9.041e-05,2]
[423077729,1779825041000,-500.0,9.041e-05,2]
[423077772,1779825041000,-479.64,9.315e-05,2]
[423077782,1779825041000,-500.0,9.315e-05,2]
[423077771,1779825041000,-500.0,9.315e-05,2]
[423077783,1779825041000,-556.77,9.315e-05,2]
[423077774,1779825041000,-500.0,9.315e-05,2]
[423077773,1779825041000,-309.36,9.315e-05,2]
[423077775,1779825041000,-500.0,9.315e-05,2]
[423077776,1779825041000,-500.0,9.315e-05,2]
[423077781,1779825041000,-2468.46,9.315e-05,2]
[423077777,1779825041000,-500.0,9.315e-05,2]
[423077778,1779825041000,-500.0,9.315e-05,2]
[423077780,1779825041000,-500.0,9.315e-05,2]
[423077779,1779825041000,-151.0,9.315e-05,2]
[423077768,1779825041000,-284.50569263,9.315e-05,2]
[423077784,1779825041000,-500.0,9.315e-05,2]
[423077787,1779825041000,-848.65,9.589e-05,2]
[423077788,1779825041000,-500.0,9.589e-05,2]
[423077795,1779825041000,-151.73,9.589e-05,2]
[423077793,1779825041000,-500.0,9.589e-05,2]
[423077791,1779825041000,-500.0,9.589e-05,2]
[423077789,1779825041000,-500.0,9.589e-05,2]
[423077785,1779825041000,-716.65826689,9.474e-05,2]
[423077790,1779825041000,-500.0,9.589e-05,2]
[423077792,1779825041000,-500.0,9.589e-05,2]
[423077796,1779825041000,-373.26,9.589e-05,2]
[423077728,1779825041000,-500.0,9.041e-05,2]
[423077798,1779825041000,-500.0,9.589e-05,2]
[423077797,1779825041000,-500.0,9.589e-05,2]
[423077786,1779825041000,-260.80196085,9.555e-05,2]
[423077759,1779825041000,-250.0,9.295e-05,2]
[423077794,1779825041000,-500.0,9.589e-05,2]
[423077763,1779825041000,-500.0,9.315e-05,2]
[423077770,1779825041000,-500.0,9.315e-05,2]
[423077744,1779825041000,-500.0,9.041e-05,2]
[423077738,1779825041000,-311.6,9.041e-05,2]
[423077739,1779825041000,-502.3,9.041e-05,2]
[423077742,1779825041000,-500.0,9.041e-05,2]
[423077740,1779825041000,-163.42,9.041e-05,2]
[423077741,1779825041000,-500.0,9.041e-05,2]
[423077746,1779825041000,-500.0,9.041e-05,2]
[423077755,1779825041000,-500.0,9.041e-05,2]
[423077756,1779825041000,-260.80196085,9.11e-05,2]
[423077745,1779825041000,-500.0,9.041e-05,2]
[423077757,1779825041000,-1062.2241075,9.13e-05,2]
[423077750,1779825041000,-500.0,9.041e-05,2]
[423077747,1779825041000,-444.74,9.041e-05,2]
[423077743,1779825041000,-225.7,9.041e-05,2]
[423077749,1779825041000,-500.0,9.041e-05,2]
[423077753,1779825041000,-500.0,9.041e-05,2]
[423077766,1779825041000,-500.0,9.315e-05,2]
[423077765,1779825041000,-179.44,9.315e-05,2]
[423077764,1779825041000,-500.0,9.315e-05,2]
[423077762,1779825041000,-500.0,9.315e-05,2]
[423077760,1779825041000,-848.65,9.315e-05,2]
[423077767,1779825041000,-500.0,9.315e-05,2]
[423077758,1779825041000,-864.0,9.277e-05,2]
[423077754,1779825041000,-556.77,9.041e-05,2]
[423077761,1779825041000,-500.0,9.315e-05,2]
[423077769,1779825041000,-239.22,9.315e-05,2]
[423077748,1779825041000,-500.0,9.041e-05,2]
[423077751,1779825041000,-500.0,9.041e-05,2]
[423077752,1779825041000,-2468.46,9.041e-05,2]
[423077827,1779825042000,-2468.46,9.863e-05,2]
[423077836,1779825042000,-214.664679,0.0001,2]
[423077829,1779825042000,-556.77,9.863e-05,2]
[423077825,1779825042000,-500.0,9.863e-05,2]
[423077824,1779825042000,-270.39,9.863e-05,2]
[423077830,1779825042000,-9851.29034186,0.0001,2]
[423077828,1779825042000,-500.0,9.863e-05,2]
[423077835,1779825042000,-11050.0,0.0001,2]
[423077837,1779825042000,-260.80196085,0.0001,2]
[423077839,1779825042000,-262.45,0.00010011,2]
[423077840,1779825042000,-280.54,0.00010013,2]